bitfinex-derivatives/quotes_BTCF0:USTF0_20250614
["timestamp","ask_amount","ask_price","bid_price","bid_amount"]
[1749862235772,1.44111833,106110.0,106100.0,0.01684006]
[1749862235977,1.44111833,106110.0,106100.0,0.02893809]
[1749862236280,1.44111833,106110.0,106100.0,0.02893807]
[1749862236479,1.44111833,106110.0,106100.0,0.18955665]
[1749862236677,1.44111833,106110.0,106100.0,0.20265467]
[1749862236879,1.44111833,106110.0,106100.0,0.21734584]
[1749862237077,1.44111833,106110.0,106100.0,0.18955665]
[1749862237278,1.44111833,106110.0,106100.0,0.21733916]
[1749862237474,1.44111833,106110.0,106100.0,0.18955665]
[1749862237782,2.22495833,106110.0,106100.0,0.2173118]
[1749862237981,2.22495833,106110.0,106100.0,0.20263403]
[1749862238176,2.22495833,106110.0,106100.0,0.21732589]
[1749862238383,2.22495833,106110.0,106100.0,0.21734039]
[1749862239083,2.22495833,106110.0,106100.0,0.21733145]
[1749862239579,2.22495833,106110.0,106100.0,0.21733946]
[1749862239778,2.22495833,106110.0,106100.0,0.21733412]
[1749862240283,2.22495833,106110.0,106100.0,0.2173323]
[1749862240482,2.22495833,106110.0,106100.0,0.21733241]
[1749862240676,2.22495833,106110.0,106100.0,0.21733239]
[1749862240877,2.22495833,106110.0,106100.0,0.21733233]
[1749862241177,2.22495833,106110.0,106100.0,0.20264133]
[1749862241477,2.22495833,106110.0,106100.0,0.20263534]
[1749862241683,2.22495833,106110.0,106100.0,0.20428797]
[1749862241882,2.22495833,106110.0,106100.0,0.20267204]
[1749862242088,2.22495833,106110.0,106100.0,0.18955665]
[1749862242585,2.22495833,106110.0,106100.0,0.20428796]
[1749862242777,2.22495833,106110.0,106100.0,0.21740332]
[1749862242978,2.22495833,106110.0,106100.0,0.20267201]
[1749862243178,2.22495833,106110.0,106100.0,0.21740332]
[1749862243375,2.22495833,106110.0,106100.0,0.20267201]
[1749862243679,2.22495833,106110.0,106100.0,0.21740332]
[1749862243985,2.25409994,106110.0,106100.0,0.01587316]
[1749862244186,2.25409994,106110.0,106100.0,0.01425725]
[1749862244389,2.1368471,106110.0,106100.0,0.02898856]
[1749862244589,2.1368471,106110.0,106100.0,0.02898855]
[1749862244781,2.1368471,106110.0,106100.0,0.01587316]
[1749862245282,2.1368471,106110.0,106100.0,0.01426357]
[1749862245283,2.25409994,106110.0,106100.0,0.01426357]
[1749862245488,2.25409994,106110.0,106100.0,0.02899976]
[1749862245787,0.1884326,106090.0,106080.0,0.5168522]
[1749862245987,0.82610245,106090.0,106080.0,0.5168522]
[1749862246184,0.95430245,106090.0,106080.0,0.5168522]
[1749862247086,0.95430245,106090.0,106080.0,0.5238522]
[1749862247890,0.95430245,106090.0,106080.0,0.56510739]
[1749862248690,0.95430245,106090.0,106080.0,0.5238522]
[1749862249083,0.95430245,106090.0,106080.0,0.56512171]
[1749862249981,0.18874,106090.0,106080.0,0.56512171]
[1749862250189,0.7750125,106100.0,106090.0,0.1884326]
[1749862250384,0.7750125,106100.0,106090.0,0.35800211]
[1749862250583,0.9204525,106100.0,106090.0,0.35800211]
[1749862251183,0.4490717,106100.0,106090.0,0.35800211]
[1749862251389,0.6374865,106100.0,106090.0,0.35800211]
[1749862251582,0.6374865,106100.0,106090.0,0.3702422]
[1749862251788,0.6374865,106100.0,106090.0,0.37024216]
[1749862251984,0.6374865,106100.0,106090.0,0.36100211]
[1749862252293,0.6374865,106100.0,106090.0,0.37125801]
[1749862252480,0.6374865,106100.0,106090.0,0.36300211]
[1749862252889,0.00014185,106100.0,106090.0,0.72380211]
[1749862253088,0.00014185,106100.0,106090.0,0.76878565]
[1749862253280,0.00014185,106100.0,106090.0,1.59360048]
[1749862253485,0.00014185,106100.0,106090.0,1.59359974]
[1749862253785,0.00014185,106100.0,106090.0,1.59359963]
[1749862253991,0.00014185,106100.0,106090.0,1.60838048]
[1749862254191,0.00014185,106100.0,106090.0,1.69668368]
[1749862254487,0.00014185,106100.0,106090.0,2.48024372]
[1749862254692,0.00014185,106100.0,106090.0,2.49024306]
[1749862254992,0.00014185,106100.0,106090.0,2.49024301]
[1749862255193,0.00014185,106100.0,106090.0,2.4799897]
[1749862255586,0.00014185,106100.0,106090.0,2.49024302]
[1749862255786,0.00014185,106100.0,106090.0,2.49024301]
[1749862255982,0.00014185,106100.0,106090.0,2.49022143]
[1749862256387,0.00014185,106100.0,106090.0,2.4902266]
[1749862256888,0.00014185,106100.0,106090.0,2.4799897]
[1749862257097,0.00014185,106100.0,106090.0,2.49022869]
[1749862257291,0.43577787,106120.0,106090.0,2.4799897]
[1749862257491,0.68451787,106120.0,106110.0,0.23243671]
[1749862257697,0.68451787,106120.0,106110.0,0.29867216]
[1749862257888,0.68451787,106120.0,106110.0,0.41394378]
[1749862258090,0.68451787,106120.0,106110.0,0.42867123]
[1749862258295,0.68451787,106120.0,106110.0,0.42867109]
[1749862258496,0.68451787,106120.0,106110.0,0.42867097]
[1749862258697,0.68451787,106120.0,106110.0,0.42867095]
[1749862258898,0.68451787,106120.0,106110.0,0.41394325]
[1749862259193,0.4208,106120.0,106110.0,0.41394325]
[1749862259398,0.3608,106120.0,106110.0,0.41394309]
[1749862259901,0.3608,106120.0,106110.0,0.41390562]
[1749862260792,0.3608,106120.0,106110.0,2.01182564]
[1749862261095,0.3608,106120.0,106110.0,2.07054329]
[1749862261291,0.3608,106130.0,106120.0,0.1883799]
[1749862261491,0.3608,106130.0,106120.0,0.55776561]
[1749862261691,0.54954,106130.0,106120.0,0.55776561]
[1749862261899,0.54954,106130.0,106120.0,0.55776566]
[1749862262097,0.54954,106130.0,106120.0,0.55776575]
[1749862262293,0.54954,106130.0,106120.0,0.54756852]
[1749862262495,0.7379021,106130.0,106120.0,0.55776582]
[1749862262798,0.54954,106130.0,106120.0,0.54756852]
[1749862262993,0.55054,106130.0,106120.0,0.54756852]
[1749862263395,0.7389021,106130.0,106120.0,0.37066688]
[1749862263597,0.7389021,106130.0,106120.0,0.55774687]
[1749862263897,0.7389021,106130.0,106120.0,0.32662776]
[1749862264103,0.7389021,106130.0,106120.0,0.51370775]
[1749862264398,0.55054,106130.0,106120.0,0.51370774]
[1749862264795,0.7389021,106130.0,106120.0,0.51370776]
[1749862265192,0.7389021,106130.0,106120.0,0.51370774]
[1749862265398,0.7389021,106130.0,106120.0,0.51370775]
[1749862265593,0.7389021,106130.0,106120.0,0.50352941]
[1749862265793,0.7389021,106130.0,106120.0,0.32662774]
[1749862265994,0.7389021,106130.0,106120.0,0.51342774]
[1749862266200,0.7809021,106130.0,106120.0,0.51342774]
[1749862266394,0.7809021,106130.0,106120.0,0.51342775]
[1749862266696,0.7809021,106130.0,106120.0,0.50324941]
[1749862267003,0.55054,106130.0,106120.0,0.55746608]
[1749862267196,0.55054,106130.0,106120.0,0.51342697]
[1749862267391,0.55054,106130.0,106120.0,0.54728852]
[1749862267600,0.55054,106130.0,106120.0,0.557449]
[1749862267796,0.18974,106130.0,106120.0,0.91824901]
[1749862268001,0.18974,106130.0,106120.0,0.90808852]
[1749862268198,0.18974,106130.0,106120.0,0.87420942]
[1749862268399,0.18974,106130.0,106120.0,0.86404941]
[1749862268606,0.23685,106130.0,106120.0,0.87420941]
[1749862268796,0.23685,106130.0,106120.0,0.87420943]
[1749862269399,0.23685,106130.0,106120.0,0.86404941]
[1749862269794,0.04811,106130.0,106120.0,0.91824853]
[1749862269995,0.0177099,106130.0,106120.0,1.17639414]
[1749862270306,0.0177099,106130.0,106120.0,0.98959324]
[1749862270501,0.0177099,106130.0,106120.0,0.98959314]
[1749862270707,0.206072,106130.0,106120.0,0.62879314]
[1749862270897,0.206072,106130.0,106120.0,0.38879314]
[1749862271095,0.0177099,106130.0,106120.0,0.1883799]
[1749862271300,0.0177099,106130.0,106120.0,0.87248485]
[1749862271496,0.0177099,106130.0,106120.0,0.91634062]
[1749862272004,0.0177099,106130.0,106120.0,0.91633791]
[1749862272305,0.0177099,106130.0,106120.0,0.90618183]
[1749862272702,0.0177099,106130.0,106120.0,0.931198]
[1749862272899,0.0177099,106130.0,106120.0,1.2111969]
[1749862273100,0.0177099,106130.0,106120.0,1.20104233]
[1749862273409,0.0177099,106130.0,106120.0,1.21119584]
[1749862273803,0.0177099,106130.0,106120.0,1.21119556]
[1749862274006,0.0436,106150.0,106140.0,0.1883444]
[1749862274307,0.23234,106150.0,106140.0,0.78733998]
[1749862274506,0.23234,106150.0,106140.0,0.87453987]
[1749862274898,0.23234,106150.0,106140.0,0.86438802]
[1749862275099,0.23234,106150.0,106140.0,0.91835543]
[1749862275309,0.004,106150.0,106140.0,1.23533988]
[1749862275507,0.004,106150.0,106140.0,1.27915389]
[1749862275808,0.004,106150.0,106140.0,1.27915385]
[1749862276002,0.004,106150.0,106140.0,1.26900357]
[1749862276200,0.004,106150.0,106140.0,0.9183536]
[1749862276403,0.004,106150.0,106140.0,0.91835343]
[1749862276597,0.004,106150.0,106140.0,0.91835319]
[1749862276795,0.004,106150.0,106140.0,0.91835308]
[1749862277001,0.004,106150.0,106140.0,0.976773]
[1749862277207,0.004,106150.0,106140.0,1.32742431]
[1749862277408,0.004,106150.0,106140.0,1.33764009]
[1749862277601,0.004,106150.0,106140.0,1.33764005]
[1749862277912,0.02967,106150.0,106140.0,1.32742431]
[1749862278205,0.02967,106150.0,106140.0,1.28360876]
[1749862278407,0.02967,106150.0,106140.0,1.40095732]
[1749862278611,0.02967,106150.0,106140.0,1.67095732]
[1749862279705,0.03380835,106150.0,106140.0,1.67095732]
[1749862280612,0.03380835,106150.0,106140.0,1.7480611]
[1749862281214,0.03380835,106150.0,106140.0,1.74806218]
[1749862282002,0.03380835,106150.0,106140.0,1.1233584]
[1749862282202,0.22254835,106150.0,106140.0,0.82082545]
[1749862282514,0.35024835,106150.0,106140.0,1.66189577]
[1749862282914,0.16150835,106150.0,106140.0,1.66189577]
[1749862283208,0.16150835,106150.0,106140.0,1.70699577]
[1749862284521,0.07680835,106150.0,106140.0,1.70699577]
[1749862284718,0.07680835,106150.0,106140.0,1.75059577]
[1749862285218,0.07680835,106150.0,106140.0,1.70681453]
[1749862285517,0.07680835,106150.0,106140.0,1.75061443]
[1749862285711,0.07680835,106150.0,106140.0,1.7943384]
[1749862287219,0.07680835,106150.0,106140.0,1.7953384]
[1749862288022,0.07280835,106150.0,106140.0,1.79738177]
[1749862289822,0.02980835,106150.0,106140.0,1.79738177]
[1749862291921,0.02980835,106150.0,106140.0,1.88738177]
[1749862292322,0.02980835,106150.0,106140.0,1.82903145]
[1749862293421,0.02980835,106150.0,106140.0,1.88750168]
[1749862293918,0.02980835,106150.0,106140.0,1.7853611]
[1749862294329,0.02980835,106150.0,106140.0,1.84383133]
[1749862294624,0.07490835,106150.0,106140.0,1.92019352]
[1749862296318,0.07490835,106150.0,106140.0,0.95071352]
[1749862296626,0.07490835,106150.0,106140.0,0.78565133]
[1749862296823,0.16110835,106150.0,106140.0,1.75461133]
[1749862297519,0.89897495,106150.0,106140.0,0.4629011]
[1749862297830,0.89897495,106150.0,106140.0,1.20148758]
[1749862298823,0.87330495,106150.0,106140.0,1.20148758]
[1749862299020,0.32417835,106150.0,106140.0,1.20148758]
[1749862299428,0.32417835,106150.0,106140.0,1.2453411]
[1749862301226,0.32417835,106150.0,106140.0,0.2763811]
[1749862301427,0.32417835,106150.0,106140.0,1.2453011]
[1749862302322,0.19287835,106150.0,106140.0,1.56224758]
[1749862302533,0.19287835,106150.0,106140.0,1.75281781]
[1749862302825,0.00413835,106150.0,106140.0,1.75281781]
[1749862303922,0.00413835,106150.0,106140.0,1.80434758]
[1749862304626,0.00413835,106150.0,106140.0,1.92104607]
[1749862307830,0.00413835,106150.0,106140.0,2.02817293]
[1749862309425,0.00413835,106150.0,106140.0,2.03544424]
[1749862309729,0.00413835,106150.0,106140.0,1.93845691]
[1749862310031,5e-08,106150.0,106140.0,2.0811856]
[1749862310530,5e-08,106150.0,106140.0,2.22817293]
[1749862311427,5e-08,106150.0,106140.0,2.32238093]
[1749862311627,0.1284,106180.0,106170.0,0.1882911]
[1749862311832,0.31714,106180.0,106170.0,1.34467885]
[1749862312134,0.31714,106180.0,106170.0,1.25676411]
[1749862312619,0.28314,106180.0,106170.0,1.25676411]
[1749862312931,0.27474,106180.0,106170.0,1.70547885]
[1749862313134,0.088,106180.0,106170.0,1.68906902]
[1749862313429,0.27674,106180.0,106170.0,1.74765488]
[1749862313832,0.27474,106180.0,106170.0,1.74765488]
[1749862314024,0.27474,106180.0,106170.0,1.66174014]
[1749862314220,0.36964754,106190.0,106180.0,0.1882734]
[1749862314429,0.0894,106190.0,106180.0,0.63417263]
[1749862314620,0.0894,106190.0,106180.0,1.57337263]
[1749862314827,0.3608,106210.0,106190.0,0.0470601]
[1749862315130,0.73930064,106210.0,106200.0,1.2509125]
[1749862315429,0.9586442,106210.0,106200.0,0.22942108]
[1749862315635,0.9586442,106210.0,106200.0,1.00974318]
[1749862315636,1.1473842,106210.0,106200.0,1.00974318]
[1749862315830,1.1897842,106210.0,106200.0,1.19798108]
[1749862316231,1.1897842,106210.0,106200.0,0.3747179]
[1749862317027,1.1917842,106210.0,106200.0,0.3747179]
[1749862317430,1.1917842,106210.0,106200.0,0.41589207]
[1749862320435,0.9217842,106210.0,106200.0,0.41589207]
[1749862320840,0.9217842,106210.0,106200.0,0.3747179]
[1749862321536,0.9217842,106210.0,106200.0,0.41591151]
[1749862321839,0.64774064,106210.0,106200.0,0.41591151]
[1749862322337,0.64774064,106210.0,106200.0,0.46061151]
[1749862322540,0.19984064,106210.0,106200.0,0.82141151]
[1749862322837,0.19074,106210.0,106200.0,0.90891151]
[1749862324037,0.19074,106210.0,106200.0,0.8677179]
[1749862325040,0.3789621,106210.0,106200.0,0.5937379]
[1749862325237,0.3789621,106210.0,106200.0,1.1564779]
[1749862325238,0.7815621,106210.0,106200.0,1.1564779]
[1749862325434,0.78570045,106210.0,106200.0,1.1564779]
[1749862325629,0.78570045,106210.0,106200.0,0.1882379]
[1749862325630,0.82740045,106210.0,106200.0,0.1882379]
[1749862325828,0.82740045,106210.0,106200.0,1.1564779]
[1749862327040,0.1882398,106200.0,106190.0,0.39108287]
[1749862327243,0.8628798,106200.0,106190.0,1.29752605]
[1749862327536,0.8628798,106200.0,106190.0,0.32956605]
[1749862327747,0.8628798,106200.0,106190.0,1.29752605]
[1749862328536,0.8628798,106200.0,106190.0,0.32956605]
[1749862328736,0.8638798,106200.0,106190.0,1.29752605]
[1749862329337,0.67564,106200.0,106190.0,0.32956605]
[1749862329534,0.67564,106200.0,106190.0,1.29748605]
[1749862329933,0.31484,106200.0,106190.0,1.29748605]
[1749862330133,0.5030798,106200.0,106190.0,0.32956605]
[1749862330446,0.8638798,106200.0,106190.0,1.29748605]
[1749862330739,0.8638798,106200.0,106190.0,0.32956605]
[1749862330937,0.8638798,106200.0,106190.0,1.29748605]
[1749862331945,0.8638798,106200.0,106190.0,0.32956605]
[1749862332148,0.8638798,106200.0,106190.0,1.29744605]
[1749862333544,0.67564,106200.0,106190.0,1.33863969]
[1749862334039,0.67564,106200.0,106190.0,1.38253289]
[1749862334040,0.23134,106200.0,106190.0,1.38253289]
[1749862334238,0.001,106200.0,106190.0,1.46623969]
[1749862334439,0.001,106200.0,106190.0,1.51013289]
[1749862335146,0.001,106200.0,106190.0,1.87093289]
[1749862335346,0.001,106200.0,106190.0,1.9734787]
[1749862336846,0.001,106200.0,106190.0,1.94556396]
[1749862337147,0.001,106200.0,106190.0,1.94552396]
[1749862338047,0.001,106200.0,106190.0,1.88699969]
[1749862338240,0.001,106200.0,106190.0,1.97491443]
[1749862340147,0.001,106200.0,106190.0,1.97487443]
[1749862340544,0.00513835,106200.0,106190.0,1.97487443]
[1749862342141,0.00513835,106200.0,106190.0,1.00707443]
[1749862342338,0.00513835,106200.0,106190.0,1.97483443]
[1749862342946,0.00513835,106200.0,106190.0,1.00707443]
[1749862343142,0.00513835,106200.0,106190.0,1.97479443]
[1749862343544,0.19387835,106200.0,106190.0,1.97479443]
[1749862344349,0.19387835,106200.0,106190.0,1.00707443]
[1749862344538,0.19387835,106200.0,106190.0,2.00409935]
[1749862344749,0.19387835,106200.0,106190.0,1.00555391]
[1749862345050,0.46791825,106200.0,106190.0,1.75782164]
[1749862345250,0.51291825,106200.0,106190.0,1.39702164]
[1749862345445,0.51291825,106200.0,106190.0,1.44042164]
[1749862345847,0.00513835,106200.0,106190.0,1.84612164]
[1749862346046,0.00513835,106200.0,106190.0,0.96619586]
[1749862346251,0.00513835,106200.0,106190.0,1.87533391]
[1749862347248,0.00513835,106200.0,106190.0,1.94533391]
[1749862349446,0.00513835,106200.0,106190.0,2.24475935]
[1749862351753,5e-08,106200.0,106190.0,2.24475935]
[1749862351953,5e-08,106200.0,106190.0,2.12753969]
[1749862352357,5e-08,106200.0,106190.0,2.47945562]
[1749862352553,5e-08,106200.0,106190.0,2.33332283]
[1749862352754,5e-08,106200.0,106190.0,2.27367248]
[1749862352954,5e-08,106200.0,106190.0,2.58860749]
[1749862353360,5e-08,106200.0,106190.0,2.47170769]
[1749862353760,5e-08,106200.0,106190.0,2.58856817]
[1749862354163,5e-08,106200.0,106190.0,2.58956817]
[1749862354667,0.3608,106230.0,106220.0,0.1882045]
[1749862354850,0.54954,106230.0,106220.0,1.25536837]
[1749862355057,0.54954,106230.0,106220.0,1.38406837]
[1749862355756,0.55254,106230.0,106220.0,1.38406837]
[1749862355950,0.19174,106230.0,106220.0,1.4278633]
[1749862356154,0.19174,106230.0,106220.0,1.83248372]
[1749862356856,0.003,106230.0,106220.0,1.80407349]
[1749862357253,0.003,106230.0,106220.0,1.84784372]
[1749862357454,0.003,106230.0,106220.0,2.02665008]
[1749862358056,0.045,106250.0,106240.0,0.188169]
[1749862358250,0.045,106250.0,106240.0,1.155449]
[1749862358456,0.23374,106250.0,106240.0,1.280949]
[1749862358761,0.23374,106250.0,106240.0,1.36580518]
[1749862359162,0.045,106250.0,106240.0,1.36580518]
[1749862359362,0.23374,106250.0,106240.0,1.36580518]
[1749862359751,0.21874,106250.0,106240.0,1.36580518]
[1749862360359,0.21874,106250.0,106240.0,1.72760518]
[1749862362367,0.18874,106250.0,106240.0,1.82971434]
[1749862362658,0.3608,106270.0,106260.0,0.1881336]
[1749862362856,0.54954,106270.0,106260.0,1.23997576]
[1749862363056,0.59234,106270.0,106260.0,1.28297576]
[1749862363250,0.59234,106270.0,106260.0,1.23930871]
[1749862363453,0.59234,106270.0,106260.0,1.23997576]
[1749862363654,0.8236559,106270.0,106260.0,1.19630871]
[1749862363853,0.8236559,106270.0,106260.0,0.04109511]
[1749862364055,0.9397306,106270.0,106260.0,0.1881336]
[1749862364256,0.9397306,106270.0,106260.0,1.1552136]
[1749862364756,0.9397306,106270.0,106250.0,0.14124908]
[1749862364965,0.8670736,106260.0,106250.0,0.00014118]
[1749862365553,1.1470736,106260.0,106250.0,0.00014118]
[1749862365759,0.7862736,106260.0,106250.0,0.00014118]
[1749862366062,1.5956331,106260.0,106250.0,0.00014118]
[1749862366359,1.9397451,106260.0,106230.0,0.9545772]
[1749862366558,0.737709,106240.0,106230.0,1.0016267]
[1749862366764,0.757709,106240.0,106230.0,0.1881867]
[1749862366972,0.844109,106240.0,106230.0,0.3741467]
[1749862368167,0.844109,106240.0,106230.0,0.3761467]
[1749862368366,0.65594,106240.0,106230.0,0.1901867]
[1749862368569,0.824109,106240.0,106230.0,0.3761467]
[1749862369267,0.894109,106240.0,106230.0,0.3761467]
[1749862369669,0.936809,106240.0,106230.0,0.3761467]
[1749862370158,0.936809,106240.0,106230.0,0.1901867]
[1749862370663,0.27514,106240.0,106230.0,0.7369467]
[1749862370861,0.27514,106240.0,106230.0,0.7791467]
[1749862372763,0.40213893,106250.0,106240.0,0.188169]
[1749862372970,0.69527893,106250.0,106240.0,0.188169]
[1749862373263,0.69527893,106250.0,106240.0,0.230369]
[1749862373669,0.73637893,106250.0,106240.0,0.230369]
[1749862374069,0.73637893,106250.0,106240.0,0.27237834]
[1749862374269,0.92233893,106250.0,106240.0,0.27237834]
[1749862374669,0.67637893,106250.0,106240.0,0.27237834]
[1749862374973,0.63527893,106250.0,106240.0,0.31604539]
[1749862375174,0.63527893,106250.0,106240.0,0.35984539]
[1749862375375,0.27447893,106250.0,106240.0,0.72064539]
[1749862375567,0.18887893,106250.0,106240.0,0.72064539]
[1749862375767,0.18887893,106250.0,106240.0,0.76434539]
[1749862376172,0.00013893,106250.0,106240.0,0.76434539]
[1749862376375,0.00013893,106250.0,106240.0,0.82256812]
[1749862377075,0.00013893,106250.0,106240.0,0.97642321]
[1749862377373,0.00013893,106250.0,106240.0,0.91820048]
[1749862378274,0.00013893,106250.0,106240.0,0.84914453]
[1749862378569,0.00013893,106250.0,106240.0,1.19596499]
[1749862379278,0.00013893,106250.0,106240.0,1.19567611]
[1749862379574,0.00013893,106250.0,106240.0,1.17249537]
[1749862379765,0.00013893,106250.0,106240.0,1.6508691]
[1749862379969,0.18887893,106250.0,106240.0,1.5210891]
[1749862380179,0.22987893,106250.0,106240.0,1.8818891]
[1749862380475,0.00013893,106250.0,106240.0,1.82376453]
[1749862380676,0.00013893,106250.0,106240.0,1.91119537]
[1749862381765,0.00013893,106250.0,106240.0,1.82376453]
[1749862382176,3e-08,106250.0,106240.0,1.91788453]
[1749862382370,3e-08,106250.0,106240.0,2.06788453]
[1749862383480,3e-08,106250.0,106240.0,2.18441611]
[1749862384277,8e-08,106260.0,106250.0,0.1881513]
[1749862384481,8e-08,106260.0,106250.0,1.9665168]
[1749862384779,8e-08,106260.0,106250.0,2.0606288]
[1749862385168,0.00661576,106280.0,106270.0,0.1881159]
[1749862385370,0.55551396,106280.0,106270.0,0.27281572]
[1749862385576,0.28385576,106280.0,106270.0,0.45873572]
[1749862385868,0.19535576,106280.0,106270.0,0.45873572]
[1749862386076,0.19535576,106280.0,106270.0,0.94453572]
[1749862386271,0.19535576,106280.0,106270.0,0.58373572]
[1749862386475,0.19535576,106280.0,106270.0,0.94453572]
[1749862386680,0.19535576,106280.0,106270.0,1.04648091]
[1749862386878,0.19535576,106280.0,106270.0,1.00276897]
[1749862387078,0.23945576,106280.0,106270.0,1.00276897]
[1749862387380,0.23945576,106280.0,106270.0,0.64196897]
[1749862387678,0.24345576,106280.0,106270.0,0.64196897]
[1749862388275,0.43155396,106280.0,106270.0,0.37224897]
[1749862388478,0.83345396,106280.0,106270.0,0.2727947]
[1749862388682,0.83345396,106280.0,106270.0,0.41488524]
[1749862389177,0.83345396,106280.0,106270.0,0.22912524]
[1749862389371,1.01921396,106280.0,106270.0,0.22912524]
[1749862391279,1.01921396,106280.0,106270.0,0.04100934]
[1749862391475,1.01921396,106280.0,106260.0,0.18827388]
[1749862391476,0.1881159,106270.0,106260.0,0.18827388]
[1749862391780,0.8641559,106270.0,106260.0,0.18827388]
[1749862393882,0.8651559,106270.0,106260.0,0.18827388]
[1749862395276,0.19228965,106250.0,106240.0,0.06213565]
[1749862395468,0.42806845,106250.0,106240.0,0.188169]
[1749862395671,0.60300765,106250.0,106240.0,0.188169]
[1749862396877,0.60300765,106250.0,106240.0,0.190169]
[1749862398677,2.75087836,106250.0,106220.0,0.14563567]
[1749862398984,0.0470584,106210.0,106190.0,0.0873814]
[1749862399184,0.1882576,106190.0,106180.0,0.4058]
[1749862399380,0.66526022,106190.0,106180.0,0.1858]
[1749862399580,0.74886022,106190.0,106180.0,0.3740753]
[1749862399779,0.60766902,106190.0,106170.0,0.00014118]
[1749862399984,0.48222312,106180.0,106170.0,0.18843428]
[1749862400184,0.48222312,106180.0,106170.0,0.00014118]
[1749862400386,0.84302312,106180.0,106170.0,0.00014118]
[1749862400587,1.02886312,106180.0,106170.0,0.00014118]
[1749862401483,1.10266087,106180.0,106170.0,0.00014118]
[1749862401787,1.10266087,106180.0,106150.0,0.3741686]
[1749862401788,0.2824866,106160.0,106150.0,0.3741686]
[1749862401980,0.75948922,106160.0,106150.0,0.38731103]
[1749862402179,0.75948922,106160.0,106150.0,0.38732448]
[1749862402376,0.84588922,106160.0,106150.0,0.38732452]
[1749862402579,0.84588922,106160.0,106150.0,0.38732473]
[1749862402780,0.84588922,106160.0,106150.0,0.3741686]
[1749862402985,0.84588922,106160.0,106150.0,0.38732489]
[1749862403289,0.79880782,106160.0,106150.0,0.38736675]
[1749862403490,0.79880782,106160.0,106150.0,0.39036605]
[1749862403691,0.79880782,106160.0,106150.0,0.39037083]
[1749862403990,0.79880782,106160.0,106150.0,0.39037528]
[1749862404284,0.79880782,106160.0,106150.0,0.003]
[1749862404482,0.79880782,106160.0,106150.0,0.01626278]
[1749862404685,1.15960782,106160.0,106150.0,0.01636023]
[1749862405084,1.15960782,106160.0,106150.0,0.20468883]
[1749862405285,1.15960782,106160.0,106150.0,0.01636023]
[1749862405483,1.15960782,106160.0,106150.0,0.01642907]
[1749862405790,1.15960782,106160.0,106150.0,0.20472137]
[1749862405991,1.15960782,106160.0,106150.0,0.20472673]
[1749862406191,1.94052782,106160.0,106140.0,0.00014118]
[1749862406386,0.1883996,106110.0,106100.0,0.3297021]
[1749862406685,0.29847573,106110.0,106100.0,0.3297241]
[1749862406993,0.11007613,106110.0,106100.0,0.3297241]
[1749862407183,0.15197613,106110.0,106100.0,0.7331241]
[1749862407388,0.15197613,106110.0,106100.0,0.3723241]
[1749862408087,0.15197613,106110.0,106100.0,0.5582441]
[1749862408488,0.15197613,106110.0,106100.0,0.7331241]
[1749862408692,0.15197613,106110.0,106100.0,0.9190441]
[1749862408893,0.34037573,106110.0,106100.0,0.9190441]
[1749862409192,0.34037573,106110.0,106100.0,0.9210441]
[1749862409995,0.41687902,106110.0,106100.0,0.9210441]
[1749862410294,0.59642058,106120.0,106110.0,0.1883996]
[1749862410495,0.71649671,106120.0,106110.0,0.1883996]
[1749862410793,0.75999671,106120.0,106110.0,0.2300996]
[1749862411093,0.44299671,106120.0,106110.0,0.2300996]
[1749862411292,0.44299671,106120.0,106110.0,0.4160596]
[1749862411593,0.80379671,106120.0,106110.0,0.4160596]
[1749862411794,0.80379671,106120.0,106110.0,0.2300996]
[1749862411997,0.80379671,106120.0,106110.0,0.4160596]
[1749862413293,0.80379671,106120.0,106110.0,0.4180596]
[1749862413897,0.44299671,106120.0,106110.0,0.4180596]
[1749862415097,0.51872991,106120.0,106110.0,0.4180596]
[1749862415298,0.47492991,106120.0,106110.0,0.4180596]
[1749862415596,0.47906826,106120.0,106110.0,0.4180596]
[1749862415794,0.47906826,106120.0,106110.0,0.2320996]
[1749862415997,0.83986826,106120.0,106110.0,0.002]
[1749862416196,0.88316826,106120.0,106110.0,0.1903996]
[1749862417903,0.88316826,106120.0,106110.0,0.1883996]
[1749862418096,1.66468826,106120.0,106110.0,0.1883996]
[1749862418298,1.66468826,106120.0,106110.0,0.20204352]
[1749862418799,1.66468826,106120.0,106110.0,0.20202612]
[1749862419097,1.66468826,106120.0,106110.0,0.20207726]
[1749862419296,0.1883996,106110.0,106100.0,0.2826053]
[1749862419508,0.1883996,106110.0,106100.0,0.1884021]
[1749862419509,1.29219573,106110.0,106100.0,0.1884021]
[1749862419799,1.29219573,106110.0,106100.0,0.20214017]
[1749862420201,1.29219573,106110.0,106100.0,0.20216129]
[1749862420696,1.29219573,106110.0,106100.0,0.20213584]
[1749862420894,1.29219573,106110.0,106100.0,0.1884021]
[1749862421495,1.29219573,106110.0,106100.0,0.20221054]
[1749862421799,1.29219573,106110.0,106100.0,0.20421056]
[1749862422208,1.29219573,106110.0,106100.0,0.20396202]
[1749862422605,1.29219573,106110.0,106100.0,0.01556219]
[1749862422805,1.29219573,106110.0,106100.0,0.01557332]
[1749862423108,1.38644373,106110.0,106100.0,0.002]
[1749862423308,0.1884173,106100.0,106090.0,0.00014118]
[1749862423504,0.1884351,106090.0,106080.0,0.2294436]
[1749862423706,1.03789543,106090.0,106080.0,0.01374396]
[1749862424005,1.03789543,106090.0,106070.0,0.2764728]
[1749862424006,0.1884528,106080.0,106070.0,0.3236903]
[1749862424205,0.1884706,106070.0,106060.0,0.01829333]
[1749862424404,0.1884706,106070.0,106060.0,0.22083244]
[1749862424405,0.51497613,106070.0,106060.0,0.22083244]
[1749862424709,0.70344673,106070.0,106060.0,0.24778173]
[1749862424908,0.1884879,106060.0,106050.0,0.00014118]
[1749862425213,1.98922403,106060.0,106050.0,0.00014118]
[1749862425404,0.74606403,106060.0,106050.0,0.18864678]
[1749862425607,1.12606403,106060.0,106050.0,0.18864678]
[1749862425911,1.05606403,106060.0,106050.0,0.23114678]
[1749862426113,2.12887642,106060.0,106050.0,0.23114678]
[1749862426313,2.12887642,106060.0,106050.0,0.23214678]
[1749862428517,2.12887642,106060.0,106050.0,0.18964678]
[1749862428711,2.94347642,106060.0,106050.0,0.02614394]
[1749862429014,2.94347642,106060.0,106050.0,0.02614517]
[1749862429216,2.94347642,106060.0,106050.0,0.02614557]
[1749862429414,2.94347642,106060.0,106050.0,0.02614569]
[1749862429709,2.60363642,106060.0,106050.0,0.21465131]
[1749862429911,1.94361642,106060.0,106050.0,0.24758414]
[1749862430112,1.94361642,106060.0,106050.0,0.28998414]
[1749862430113,2.56149642,106060.0,106050.0,0.28998414]
[1749862430314,2.56149642,106060.0,106050.0,0.28998393]
[1749862430910,0.92479477,106060.0,106050.0,0.28998393]
[1749862432117,0.73875477,106060.0,106050.0,0.28998393]
[1749862432316,1.29479477,106060.0,106050.0,0.28998393]
[1749862432517,0.93399477,106060.0,106050.0,0.28998393]